[Event "Finnish Women Championship 2022"]
[Site "Helsinki"]
[Date "2022.04.22"]
[Round "8.3"]
[White "Turunen, Tiina"]
[Black "Norlamo, Sarabella"]
[Result "1-0"]
[ECO "D02"]
[WhiteElo "1585"]
[BlackElo "1957"]
[Annotator "TA"]
[PlyCount "141"]
[EventDate "2022.04.15"]
[EventType "tourn"]
[EventCountry "FIN"]
[SourceTitle "playchess.com"]
[Source "ChessBase"]
[SourceQuality "1"]
[TimeControl "40/5400+30:1800+30"]

{[%evp 10,141,0,0,-7,-2,0,-8,-1,11,10,0,0,-16,0,0,0,0,0,0,0,-16,-15,-15,-17,-16,-9,-21,-19,-23,0,-45,-33,-45,-14,-19,-20,-37,-49,-122,-122,-122,-120,-139,-137,-135,-99,-100,-98,-100,-92,-171,-159,-222,-210,-197,-200,-216,-197,-207,-210,-275,-275,-263,-227,-249,-35,-34,-37,-54,-27,-27,-58,-75,-75,-74,-16,-17,-20,-104,-107,-95,-92,-98,-16,-16,-16,-91,-20,-34,-27,-89,-28,-62,-66,-97,-16,-100,-39,-37,-38,-41,0,0,0,0,125,108,199,163,162,150,762,268,277,261,352,302,288,200,200,75,80,83,94,0,7,0,159,12,312,0,29985,29986]} 1. d4 {[%emt 0:00:25]} Nf6 {[%emt 0:00:07]} 2. Nf3 {[%emt 0:00:09]} e6 {[%emt 0:00:21]} 3. Bf4 {[%emt 0:00:33]} d5 {[%emt 0:00:09]} 4. Nbd2 {[%emt 0:00:28]} Bd6 {[%emt 0:01:43]} 5. Bxd6 {[%emt 0:04:57]} Qxd6 {[%emt 0:00:08]} 6. e3 {[%emt 0:00:12]} O-O {[%emt 0:03:14] D02: 1 d4 d5 2 Nf3 sidelines, including 2...Nf6 3 g3 and 2...Nf6 3 Bf4.} 7. Be2 {[%emt 0:00:49]} Nbd7 {[%emt 0:05:52]} 8. O-O {[%emt 0:00:41]} e5 {[%emt 0:03:06] The position is equal.} 9. dxe5 {[%emt 0:02:28]} Nxe5 {[%emt 0:00:02]} 10. Nxe5 {[%emt 0:03:26]} Qxe5 {[%emt 0:00:10]} 11. c3 {[%emt 0:00:26]} c6 {[%emt 0:05:59] [#]} 12. Rc1 $146 {[%emt 0:02:32]} ({Predecessor:} 12. Nf3 Qc7 13. Re1 Re8 14. Qc2 Bg4 15. Nd2 Re6 16. Bxg4 Nxg4 17. Nf1 {0-1 (61) Liebl,L (1519)-Bail,E (1851) Sao Bento do Sul 2016}) 12... Bf5 {[%emt 0:11:37]} 13. Nf3 {[%emt 0:03:47]} Qe7 {[%emt 0:00:34]} 14. Re1 {[%emt 0:01:45]} Rad8 {[%emt 0:00:36]} 15. Bd3 {[%emt 0:00:30]} Bg4 {[%emt 0:02:56]} 16. h3 {[%emt 0:01:01]} Bh5 {[%emt 0:00:38]} 17. Be2 {[%emt 0:00:19]} Rfe8 {[%emt 0:09:39]} 18. Nd4 {[%emt 0:03:29]} Bg6 {[%emt 0:02:06]} 19. Bd3 {[%emt 0:01:24]} Ne4 {[%emt 0:01:54]} 20. Nf3 {[%emt 0:05:44]} Bh5 {[%emt 0:04:26]} 21. Be2 {[%emt 0:00:20]} Rd7 {[%emt 0:08:18]} 22. Nd4 {[%emt 0:01:49]} Bg6 {[%emt 0:00:13]} (22... Nxf2 23. Kxf2 Qxe3+ 24. Kf1 Qf4+ 25. Bf3 $16) 23. Bg4 {[%emt 0:03:09]} Rd6 {[%emt 0:03:16]} 24. Nf5 {[%emt 0:06:42]} (24. b4 $15) 24... Bxf5 $17 {[%emt 0:00:11]} 25. Bxf5 {[%emt 0:00:49] [#]} Nxf2 $1 {[%emt 0:08:00][%mdl 512]} 26. Bxh7+ {[%emt 0:06:16]} (26. Kxf2 Rf6) 26... Kxh7 {[%emt 0:00:12]} 27. Kxf2 {[%emt 0:00:19]} Rf6+ {[%emt 0:01:41]} 28. Kg1 {[%emt 0:01:57]} Re6 {[%emt 0:01:10]} 29. Qd3+ {[%emt 0:04:57]} Kg8 {[%emt 0:00:17]} 30. Kf2 {[%emt 0:00:43]} (30. c4 $17) 30... Qh4+ $19 {[%emt 0:02:12]} 31. Kf1 {[%emt 0:01:05]} (31. Kg1 $17 {was called for.}) 31... Rf6+ {[%emt 0:11:40]} 32. Kg1 {[%emt 0:00:57]} Qf2+ {[%emt 0:00:36]} ({Weaker is} 32... Qg3 33. Re2 $17) 33. Kh1 {[%emt 0:00:54]} Qxb2 {[%emt 0:00:14]} 34. Rc2 {[%emt 0:00:17]} Qa3 {[%emt 0:00:20]} 35. Rb1 {[%emt 0:01:44]} b6 {[%emt 0:01:42]} 36. Rb4 {[%emt 0:00:26]} Qa5 {[%emt 0:06:28]} 37. Rh4 {[%emt 0:01:21]} Rh6 {[%emt 0:02:53] Against Qh7+} (37... Qc5 $19 38. Re2 (38. Qh7+ $2 Kf8 $19) 38... g6) 38. Rxh6 $15 {[%emt 0:01:11]} gxh6 {[%emt 0:00:02][%mdl 4096] Endgame KQR-KQR} 39. Rf2 {[%emt 0:00:24]} Qc5 {[%emt 0:01:39]} 40. Qf5 {[%emt 0:00:55]} Qe7 {[%emt 0:02:09]} 41. Rf3 {[%emt 0:31:00]} Qe6 {[%emt 0:05:53]} 42. Rg3+ {[%emt 0:00:00]} Kf8 {[%emt 0:02:27]} (42... Kh8 $17 43. Qf4 Kh7) 43. Qf4 $11 {[%emt 0:00:00]} ({Much weaker is} 43. Qh7 Ke7 44. Qd3 Kd8 $17) 43... Rd8 {[%emt 0:12:31]} 44. Qh4 {[%emt 0:00:00]} (44. Qa4 $11) 44... Rd6 $1 $17 {[%emt 0:01:21]} (44... f6 $2 45. Qxh6+ Ke7 46. Qh7+ (46. Rg7+ Kd6 $18) 46... Kd6 47. Qxa7 $18) 45. Rf3 {[%emt 0:00:00]} Qe4 {[%emt 0:02:33]} 46. Qg3 {[%emt 0:00:00]} Qg6 {[%emt 0:00:40]} (46... Qe7 $1 $17) 47. Qe5 $11 {[%emt 0:00:00]} Qe6 {[%emt 0:00:50]} 48. Qf4 {[%emt 0:00:00]} (48. Qd4 $11) 48... Ke7 {[%emt 0:00:28]} ({Better is} 48... Qd7 $17) 49. Qh4+ {[%emt 0:00:00]} Kd7 {[%emt 0:00:19]} 50. Qf4 {[%emt 0:00:00]} (50. Qf2 $11) 50... Ke8 {[%emt 0:01:49]} (50... a5 $1 $17) 51. Qh4 {[%emt 0:00:00]} Qe7 {[%emt 0:01:15]} 52. Qf4 {[%emt 0:00:00] [#]} a5 {[%emt 0:01:47]} (52... Kf8 $1 $17) 53. Rg3 {[%emt 0:00:00]} (53. Qd4 $11) 53... Qf6 {[%emt 0:01:33]} (53... Kd7 $17 {...Rf6 is the strong threat.} 54. Rf3 Re6) 54. Qg4 $1 $15 {[%emt 0:04:53]} Re6 {[%emt 0:00:50]} 55. Qg8+ {[%emt 0:01:49]} Ke7 {[%emt 0:00:01]} 56. Rf3 {[%emt 0:00:52]} Qg6 {[%emt 0:00:12]} 57. Qc8 {[%emt 0:00:34]} Kd6 {[%emt 0:01:32] Inhibits Qc7+.} (57... c5 $11 {keeps the balance.}) 58. Qf8+ $16 {[%emt 0:01:00]} Ke5 {[%emt 0:00:55]} (58... Re7 $16 {is a better defense.}) 59. Qb8+ {[%emt 0:01:07]} Rd6 {[%emt 0:00:53]} 60. Qxb6 {[%emt 0:00:44]} Qd3 $2 {[%emt 0:01:40]} (60... Ke6 $16 61. Qxa5 Qb1+ 62. Kh2 Qb8) 61. Qxa5 $2 {[%emt 0:01:09]} (61. Rxf7 {aiming for Re7+.} Qg6 62. Qc7) 61... Qb1+ {[%emt 0:01:46]} 62. Kh2 {[%emt 0:00:38]} Qb7 {[%emt 0:00:38] Prevents Qa7.} 63. Qa4 {[%emt 0:00:42] White threatens Qf4+ and mate.} Rg6 {[%emt 0:00:18]} 64. Qd4+ {[%emt 0:02:48]} Ke6 {[%emt 0:00:05]} 65. a4 {[%emt 0:01:05]} (65. c4 $18) 65... Qb2 {[%emt 0:00:58][%csl Gg6][%cal Rb2g2]} 66. Rg3 $36 {[%emt 0:00:25][%mdl 2048] Keeping Black busy.} Qb8 {[%emt 0:00:29]} 67. Qh4 {[%emt 0:00:57]} (67. Qf4 $16 Qxf4 68. exf4) 67... Kd7 $1 $11 {[%emt 0:00:43]} 68. a5 {[%emt 0:00:51]} Kc8 $2 {[%emt 0:00:19] [#]} (68... c5 $11) 69. a6 {[%emt 0:00:23]} ({Only move:} 69. Qf4 $1 $16 {[%cal Rf4b8]}) 69... Qc7 $2 {[%emt 0:00:39][%mdl 8192]} (69... c5 $11 {and Black stays safe.}) 70. a7 $2 {[%emt 0:01:11]} (70. Qf4 $18) 70... Rxg3 $4 {[%emt 0:00:42][%mdl 8192]} (70... Kb7 $11) 71. a8=Q+ {[%emt 0:02:28] White used his chance.  Weighted Error Value: White=0.19 (very precise) /Black=0.28 (precise)} 1-0